Cogmind - Beta 9 @@@ ROGUE MODE // 2019.10.19 @ 22:32:09 Player: muxecoid Result: Destroyed by S-27 Virus with Autogun Performance ------------- Evolutions (3) 1500 Regions Visited (9) 1800 Robots Destroyed (30) 150 Value Destroyed (605) 605 Prototype IDs (2) 40 Alien Tech Used (0) 0 Bonus (15) 15 TOTAL SCORE: 4110 Bonus ------- High Alert Combat Kills 15 Cogmind --------- Core Integrity 0/700 Matter 205/300 Energy 99/100 System Corruption 6% Temperature Cool (0) Location -7/Lower Caves Parts ------- Power (1) Propulsion (2) Utility (8) Terrain Scan Processor Targeting Computer Targeting Computer Core Analyzer Hacking Suite System Shield System Backup Module Weapon (2) Inventory (4) Light Deuterium Engine High-capacity Storage Unit HERF Cannon Improved Proton Missile Launcher Peak State ------------ Power Enhanced Nuclear Core Propulsion Hover Unit Airjet Utility Terrain Scan Processor Targeting Computer Targeting Computer Core Analyzer Hacking Suite System Shield System Backup Module Weapon Flak Gun Katana Inventory Light Deuterium Engine High-capacity Storage Unit HERF Cannon Improved Proton Missile Launcher [Rating: 35] Favorites ----------- Power Light Nuclear Core Power Core Light Nuclear Core Propulsion Airjet Hover Unit Airjet Utility Targeting Computer Device Maneuvering Thrusters Storage High-capacity Storage Unit Processor Targeting Computer Hackware Hacking Suite Protection Improved Light Armor Plating Weapon Flak Gun Energy Gun Pulse Rifle Ballistic Gun Flak Gun Launcher Grenade Launcher Slashing Weapon Katana Build | -11 -10 -10 -9 -9 -8 -7 -7 -7 -7 ------- Run | Scr Mat Min Mat Min Mat Fac Was Fac Low Slots Evolved 6 | . . . 2 . 2 2 . . . Power . | . . . . . . . . . . Propulsion . | . . . . . . . . . . Utility 6 | . . . 2 . 2 2 . . . Weapon . | . . . . . . . . . . Parts Attached 46 | 2 4 8 9 . 14 4 . 5 . Power 2 | . . . . . 1 . . 1 . Engine . | . . . . . . . . . . Core 2 | . . . . . 1 . . 1 . Reactor . | . . . . . . . . . . Propulsion 4 | . . . . . 4 . . . . Treads . | . . . . . . . . . . Leg . | . . . . . . . . . . Wheel . | . . . . . . . . . . Hover 4 | . . . . . 4 . . . . Flight . | . . . . . . . . . . Utility 14 | . 1 1 3 . 3 3 . 3 . Device 2 | . . . . . 1 . . 1 . Storage 1 | . . . . . 1 . . . . Processor 6 | . 1 . 3 . 1 . . 1 . Hackware 2 | . . 1 . . . . . 1 . Protection 3 | . . . . . . 3 . . . Artifact . | . . . . . . . . . . Weapon 26 | 2 3 7 6 . 6 1 . 1 . Energy Gun 6 | . . 1 2 . 3 . . . . Energy Cannon . | . . . . . . . . . . Ballistic Gun 9 | 2 1 3 1 . 1 1 . . . Ballistic Cannon . | . . . . . . . . . . Launcher 10 | . 2 3 3 . 2 . . . . Special Weapon . | . . . . . . . . . . Impact Weapon . | . . . . . . . . . . Slashing Weapon 1 | . . . . . . . . 1 . Piercing Weapon . | . . . . . . . . . . Special Melee Weapon . | . . . . . . . . . . Unidentified Prototypes 2 | . . . . . 1 . . 1 . Parts Lost 19 | . 2 2 3 1 8 . . . 3 Power 1 | . . . . . 1 . . . . Propulsion 4 | . . . . . 2 . . . 2 Utility 3 | . 1 . . . 2 . . . . Weapon 11 | . 1 2 3 1 3 . . . 1 Highest Loss Streak 7 | . 2 4 3 1 7 . . . 2 Average Slot Usage (%) 60 | . 36 27 48 55 78 64 76 77 59 Core 2 | . . . . . 7 . . 6 . Hover 8 | . . . . . 15 15 15 15 . Device 1 | . . . . . 3 . . . 7 Processor 22 | . 8 . 22 33 33 23 23 26 30 Hackware 9 | . . 9 11 11 9 7 7 10 15 Protection 3 | . . . . . . 13 23 4 . Energy Gun 3 | . . 7 6 11 6 . . . . Ballistic Gun 6 | . 24 6 6 . 2 5 7 7 . Launcher 1 | . 4 4 3 . . . . . . Slashing Weapon 1 | . . . . . . . . 4 5 Naked Turns 2 | . . 2 . . . . . . . Heaviest Build 15 | 2 4 3 7 3 12 13 13 15 15 Greatest Support 18 | 3 3 3 3 3 18 15 15 15 15 Greatest Overweight (x) 2 | . 1 . 2 . . . . . . Average Overweight (x) . | . . . . . . . . . . Largest Inventory Capacity 12 | 4 4 4 4 4 12 4 4 4 4 Average Capacity 4 | 4 4 4 4 4 4 4 4 4 4 Most Carried 4 | 2 4 4 4 4 4 3 4 4 4 Average Carried 3 | 1 3 3 3 4 3 2 3 4 4 Final Capacity 4 | . . . . . . . . . 4 Final Carried 4 | . . . . . . . . . 4 Class Distribution -------------------- 85% | Mutant 14% | Hacker-Mutant Dominant Class ---------------- Mutant | -10/Materials Mutant | -10/Mines Mutant | -9/Materials Mutant | -9/Mines Mutant | -8/Materials Mutant | -7/Factory Mutant | -7/Waste Mutant | -7/Factory Hacker-Mutant | -7/Lower Caves Resources | -11 -10 -10 -9 -9 -8 -7 -7 -7 -7 ----------- Run | Scr Mat Min Mat Min Mat Fac Was Fac Low Matter Collected 792 | 220 30 45 225 . 138 . . 134 . Remotely . | . . . . . . . . . . Salvage Created 447 | . 48 129 85 . 185 . . . . Parts 43 | . 1 17 13 . 12 . . . . Haulers Intercepted . | . . . . . . . . . . Recyclers Shooed 1 | . . . 1 . . . . . . Parts Field Recycled . | . . . . . . . . . . Retrieved Matter . | . . . . . . . . . . Parts Self-Destructed . | . . . . . . . . . . Prevented . | . . . . . . . . . . Kills | -11 -10 -10 -9 -9 -8 -7 -7 -7 -7 ------- Run | Scr Mat Min Mat Min Mat Fac Was Fac Low Combat Hostiles Destroyed 26 | . 2 6 9 . 9 . . . . Guns 8 | . 1 1 3 . 3 . . . . AOE 18 | . 1 5 6 . 6 . . . . Classes Destroyed 6 | . 1 2 . . 3 . . . . Worker 3 | . . . . . 3 . . . . Tunneler 1 | . . 1 . . . . . . . Swarmer 17 | . . 3 8 . 6 . . . . Grunt 6 | . 2 3 1 . . . . . . Sentry 2 | . . . . . 2 . . . . Hunter 1 | . . . . . 1 . . . . Best Kill Streak 11 | . 1 4 4 . 11 . . . . Combat Bots Only 8 | . 1 3 4 . 8 . . . . Max Kills in Single Turn 2 | . 1 2 2 . 2 . . . . Gunslinging . | . . . . . . . . . . Exploded 2 | . 1 2 2 . 2 . . . . Melee . | . . . . . . . . . . Uniques/NPCs Destroyed . | . . . . . . . . . . Combat | -11 -10 -10 -9 -9 -8 -7 -7 -7 -7 -------- Run | Scr Mat Min Mat Min Mat Fac Was Fac Low Damage Taken 2261 | . 309 212 234 11 589 32 . 70 804 Core 1118 | . 116 69 63 . 167 5 . 23 675 Absorbed by Shields . | . . . . . . . . . . Core Remaining (%) 69 | 100 . 26 . 84 69 . . . . Volleys Fired 62 | . 12 14 15 . 21 . . . . Largest 2 | . 2 2 2 . 2 . . . . Hottest 93 | . 40 63 93 . 78 . . . . Shots Fired 86 | . 20 17 20 . 29 . . . . Gun 63 | . 16 11 13 . 23 . . . . Cannon . | . . . . . . . . . . Launcher 23 | . 4 6 7 . 6 . . . . Special . | . . . . . . . . . . Kinetic 42 | . 16 10 8 . 8 . . . . Thermal 21 | . . 1 5 . 15 . . . . Explosive 23 | . 4 6 7 . 6 . . . . Electromagnetic . | . . . . . . . . . . Robot Hit Streak 8 | . 8 6 5 . 8 . . . . Robot Miss Streak 2 | . 2 2 2 . 2 . . . . Penetration Max . | . . . . . . . . . . Secondary Targets . | . . . . . . . . . . Shots Hit Robots 60 | . 14 11 12 . 22 . . 1 . Core Hits 52 | . 9 11 13 . 18 . . 1 . Critical Hits . | . . . . . . . . . . Critical Kills . | . . . . . . . . . . Critical Parts Destroyed . | . . . . . . . . . . Melee Attacks 4 | . . . . . . . . 4 . Impact . | . . . . . . . . . . Slashing 4 | . . . . . . . . 4 . Piercing . | . . . . . . . . . . Sneak Attacks . | . . . . . . . . . . Combat Hostiles . | . . . . . . . . . . Follow-up Attacks . | . . . . . . . . . . Damage Inflicted 2058 | . 284 357 427 . 955 . . 35 . Guns 557 | . 85 60 102 . 310 . . . . Cannons . | . . . . . . . . . . Explosions 1466 | . 199 297 325 . 645 . . . . Melee 35 | . . . . . . . . 35 . Ramming . | . . . . . . . . . . Kinetic 266 | . 85 42 35 . 104 . . . . Thermal 291 | . . 18 67 . 206 . . . . Explosive 1466 | . 199 297 325 . 645 . . . . Electromagnetic . | . . . . . . . . . . Impact . | . . . . . . . . . . Slashing 35 | . . . . . . . . 35 . Piercing . | . . . . . . . . . . Highest Corruption 6 | . 2 2 . . . . 6 6 6 Average Corruption 4 | . 2 2 . . . . 6 6 6 Corruption Purged . | . . . . . . . . . . Effects 10 | . . 2 . . . . . 7 1 Matter Fused 2 | . . . . . . . . 1 1 Heat Flow Errors 2 | . . . . . . . . 2 . Energy Discharges 2 | . . 1 . . . . . 1 . Data Loss (major) 1 | . . . . . . . . 1 . Targeting Errors 3 | . . 1 . . . . . 2 . Overload Shots . | . . . . . . . . . . Overflow Damage 93 | . 7 12 7 . 67 . . . . Projectiles . | . . . . . . . . . . Explosions 93 | . 7 12 7 . 67 . . . . Melee . | . . . . . . . . . . Knockbacks . | . . . . . . . . . . Impact . | . . . . . . . . . . Kinetic . | . . . . . . . . . . Secondary . | . . . . . . . . . . Self-Inflicted Damage 135 | . . 48 . . 87 . . . . Shots 5 | . . 3 . . 2 . . . . Rammed 1 | . . . 1 . . . . . . Targets Rammed 1 | . . . 1 . . . . . . Kicked . | . . . . . . . . . . Crushed . | . . . . . . . . . . Highest Temperature 160 | . 5 18 12 . 85 . . 160 . Average Temperature 35 | . 4 7 5 . 37 . . 74 . Received Heat Transfer 402 | . 120 75 48 6 81 12 . 24 36 Siege Activations . | . . . . . . . . . . Robots Corrupted . | . . . . . . . . . . Combat Hostiles . | . . . . . . . . . . Parts Fried . | . . . . . . . . . . Impact Corruptions . | . . . . . . . . . . Robots Melted . | . . . . . . . . . . Combat Hostiles . | . . . . . . . . . . Parts Melted 2 | . . . . . 2 . . . . Heat Transferred 592 | . . 37 148 . 407 . . . . Parts Sabotaged . | . . . . . . . . . . Parts Stolen . | . . . . . . . . . . Parts Stripped . | . . . . . . . . . . Power Chain Reactions . | . . . . . . . . . . Missiles Intercepted . | . . . . . . . . . . Alert | -11 -10 -10 -9 -9 -8 -7 -7 -7 -7 ------- Run | Scr Mat Min Mat Min Mat Fac Was Fac Low Peak Influence 423 | . 95 172 381 148 423 233 126 140 . Average Influence 140 | . 39 95 205 146 174 202 95 93 . Maximum Alert Level 2 | . . . 1 . 2 1 . . . Low Security (%) 75 | . . . . . . . . . . Level 1 22 | . . . . . . . . . . Level 2 2 | . . . . . . . . . . Level 3 . | . . . . . . . . . . Level 4 . | . . . . . . . . . . Level 5 . | . . . . . . . . . . High Security . | . . . . . . . . . . Max Security . | . . . . . . . . . . Squads Dispatched 5 | . 2 1 1 . 1 . . . . Investigation 2 | . . 1 1 . . . . . . Extermination . | . . . . . . . . . . Reinforcement 3 | . 2 . . . 1 . . . . Assault . | . . . . . . . . . . Garrison . | . . . . . . . . . . Intercept . | . . . . . . . . . . Construction Impeded . | . . . . . . . . . . Haulers Reinforced . | . . . . . . . . . . Stealth | -11 -10 -10 -9 -9 -8 -7 -7 -7 -7 --------- Run | Scr Mat Min Mat Min Mat Fac Was Fac Low Distress Signals 2 | . 1 . . . 1 . . . . Communications Jammed . | . . . . . . . . . . Distress Signals . | . . . . . . . . . . Times Spotted 82 | . 6 10 18 3 15 1 6 4 19 Peak Tracking Total 13 | . 3 3 8 3 8 1 6 4 13 Tactical Retreats 7 | . . 2 2 . 1 . . . 2 Traps | -11 -10 -10 -9 -9 -8 -7 -7 -7 -7 ------- Run | Scr Mat Min Mat Min Mat Fac Was Fac Low Traps Triggered 2 | . . . . . 1 1 . . . Indirectly . | . . . . . . . . . . Trap Hack Attempts . | . . . . . . . . . . Triggered . | . . . . . . . . . . Disarmed . | . . . . . . . . . . Reprogrammed . | . . . . . . . . . . Reused . | . . . . . . . . . . Traps Extracted . | . . . . . . . . . . Installed . | . . . . . . . . . . Triggered . | . . . . . . . . . . Machines | -11 -10 -10 -9 -9 -8 -7 -7 -7 -7 ---------- Run | Scr Mat Min Mat Min Mat Fac Was Fac Low Machines Disabled 5 | . 1 . 3 . 1 . . . . Max in Single Turn 1 | . 1 . 1 . 1 . . . . Machines Sabotaged . | . . . . . . . . . . Garrisons Compromised . | . . . . . . . . . . Overloaded Fab Kills . | . . . . . . . . . . Fab Network Shutdowns . | . . . . . . . . . . Hacking | -11 -10 -10 -9 -9 -8 -7 -7 -7 -7 --------- Run | Scr Mat Min Mat Min Mat Fac Was Fac Low Machines Accessed 10 | . . 1 3 . 1 1 . 4 . Terminals 7 | . . . 2 . 1 . . 4 . Fabricators 1 | . . . . . . 1 . . . Repair Stations . | . . . . . . . . . . Recycling Units 1 | . . . 1 . . . . . . Scanalyzers . | . . . . . . . . . . Garrison Access . | . . . . . . . . . . Total Hacks 19 | . . 1 5 . 1 1 . 11 . Successful 9 | . . 1 2 . . 1 . 5 . Failed 10 | . . . 3 . 1 . . 6 . Catastrophic 1 | . . . . . 1 . . . . Database Lockouts . | . . . . . . . . . . Manual 11 | . . . 2 . . . . 9 . Terminals 16 | . . . 4 . 1 . . 11 . Fabricators 1 | . . . . . . 1 . . . Repair Stations . | . . . . . . . . . . Recycling Units 1 | . . . 1 . . . . . . Scanalyzers . | . . . . . . . . . . Garrison Access . | . . . . . . . . . . Terminal Hacks 5 | . . 1 1 . . . . 3 . Open Door 1 | . . 1 . . . . . . . Branch Access Points 1 | . . . . . . . . 1 . Recycling Unit Index 1 | . . . . . . . . 1 . Locate Traps 1 | . . . . . . . . 1 . Recall Investigation 1 | . . . 1 . . . . . . Fabricator Hacks 1 | . . . . . . 1 . . . Build 1 | . . . . . . 1 . . . Repair Station Hacks . | . . . . . . . . . . Recycling Unit Hacks . | . . . . . . . . . . Scanalyzer . | . . . . . . . . . . Garrison Access Hacks . | . . . . . . . . . . Unauthorized Hacks 10 | . . . 2 . . . . 8 . Terminals 2 | . . . . . . . . 2 . Track 1 | . . . . . . . . 1 . Botnet 1 | . . . . . . . . 1 . Fabricators . | . . . . . . . . . . Repair Stations . | . . . . . . . . . . Recycling Units 1 | . . . 1 . . . . . . Tunnel 1 | . . . 1 . . . . . . Scanalyzers . | . . . . . . . . . . Garrison Access . | . . . . . . . . . . Data Cores Recovered . | . . . . . . . . . . Used . | . . . . . . . . . . Hacking Detections 7 | . . . 2 . 1 1 . 3 . Full Trace Events . | . . . . . . . . . . Feedback Events . | . . . . . . . . . . Feedback Blocked . | . . . . . . . . . . Robot Schematics Acquired . | . . . . . . . . . . Robots Built . | . . . . . . . . . . Matter 252 | . . . . . . 252 . . . Time 67 | . . . . . . 67 . . . Total Robot Build Rating . | . . . . . . . . . . Part Schematics Acquired . | . . . . . . . . . . Parts Built . | . . . . . . . . . . Matter . | . . . . . . . . . . Time . | . . . . . . . . . . Total Part Build Rating . | . . . . . . . . . . Parts Repaired . | . . . . . . . . . . Time . | . . . . . . . . . . Parts Recycled . | . . . . . . . . . . Recycled Matter . | . . . . . . . . . . Retrieved Matter . | . . . . . . . . . . Retrieved Components . | . . . . . . . . . . Parts Scanalyzed . | . . . . . . . . . . Part Schematics Acquired . | . . . . . . . . . . Parts Damaged . | . . . . . . . . . . Bothacking | -11 -10 -10 -9 -9 -8 -7 -7 -7 -7 ------------ Run | Scr Mat Min Mat Min Mat Fac Was Fac Low Used RIF Installer . | . . . . . . . . . . Robots Hacked . | . . . . . . . . . . Non-combat . | . . . . . . . . . . Combat . | . . . . . . . . . . Robot Hacks Applied . | . . . . . . . . . . Relay Couplers Released . | . . . . . . . . . . Robots Rewired . | . . . . . . . . . . Allies Hacked . | . . . . . . . . . . Hacks Repelled . | . . . . . . . . . . Allies | -11 -10 -10 -9 -9 -8 -7 -7 -7 -7 -------- Run | Scr Mat Min Mat Min Mat Fac Was Fac Low Total Allies 2 | . . 1 . . . . 1 . . Largest Group 1 | . . 1 . . . . 1 . . Highest-Rated Group 31 | . . 31 . . . . 31 . . Highest-Rated Ally 31 | . . 31 . . . . 31 . . Total Orders 1 | . . . . . . . . 1 . EXPLORE 1 | . . . . . . . . 1 . Ally Attacks 6 | . . . . . . . 6 . . Total Damage 122 | . . . . . . . 122 . . Kills . | . . . . . . . . . . Allies Corrupted . | . . . . . . . . . . Allies Melted . | . . . . . . . . . . Intel | -11 -10 -10 -9 -9 -8 -7 -7 -7 -7 ------- Run | Scr Mat Min Mat Min Mat Fac Was Fac Low Robot Analysis Total . | . . . . . . . . . . Derelict Logs Recovered 1 | . . 1 . . . . . . . Drone Launches 3 | . . . . . . . 3 . . Drone Recoveries . | . . . . . . . . . . Exploration | -11 -10 -10 -9 -9 -8 -7 -7 -7 -7 ------------- Run | Scr Mat Min Mat Min Mat Fac Was Fac Low Turns Passed 1156 | 18 69 155 184 12 238 135 50 211 84 Spaces Moved 1524 | 26 57 226 228 23 267 145 81 307 164 Core 760 | 26 57 226 228 23 44 . . . 156 Treads . | . . . . . . . . . . Legs . | . . . . . . . . . . Wheels . | . . . . . . . . . . Hover 764 | . . . . . 223 145 81 307 8 Flight . | . . . . . . . . . . Fastest Speed 50 | 50 50 50 50 50 50 56 56 56 50 Average Speed 53 | 50 54 50 54 50 55 56 56 56 50 Slowest Speed 150 | 50 100 50 150 50 60 56 56 56 60 Overloaded Moves . | . . . . . . . . . . Propulsion Burnouts . | . . . . . . . . . . Robots Hopped . | . . . . . . . . . . Cave-ins Triggered 1 | . 1 . . . . . . . . Exploration Rate (%) 28 | 3 25 48 29 10 31 6 84 16 37 Regions Visited 9 Branch Regions 3 Pre-discovered Areas 2 | . . . 1 1 . . . . . Known Exits Taken 1 | . . . . . . . . 1 . Unknown Exits Taken 6 | 1 1 1 1 1 1 . . . . Scrap Searched . | . . . . . . . . . . Spaces Dug 10 | . 7 . . . . . . 3 . Terrain Destroyed 171 | . 15 52 49 . 52 . . 3 . Melee 3 | . . . . . . . . 3 . Projectile . | . . . . . . . . . . AOE 168 | . 15 52 49 . 52 . . . . Actions | -11 -10 -10 -9 -9 -8 -7 -7 -7 -7 --------- Run | Scr Mat Min Mat Min Mat Fac Was Fac Low Total 1756 | 29 76 251 267 22 326 196 85 338 166 Wait 99 | . . . 11 . 21 46 1 20 . Move 1516 | 25 56 225 227 22 266 145 80 306 164 Hop . | . . . . . . . . . . Pick Up 13 | 2 3 1 2 . 2 1 2 . . Fast Attach 26 | 2 1 4 3 . 7 4 . 5 . Attach 11 | . . 3 4 . 4 . . . . Detach 5 | . . 2 2 . 1 . . . . Swap 9 | . 3 1 2 . 3 . . . . Drop 9 | . 1 1 . . 1 . 1 3 2 Fire 62 | . 12 14 15 . 21 . . . . Melee 4 | . . . . . . . . 4 . Ram 1 | . . . 1 . . . . . . Kick . | . . . . . . . . . . Crush . | . . . . . . . . . . Escape Stasis . | . . . . . . . . . . Rewire . | . . . . . . . . . . Trap . | . . . . . . . . . . Miscellaneous 1 | . . . . . . . 1 . . Route ------- -11/Scrapyard -10/Materials -10/Mines -9/Materials -9/Mines -8/Materials -7/Factory -7/Waste -7/Factory (discovered 4 exits: Sto x2 / *Low x2) -7/Lower Caves History --------- Turn | Location | Event 10 | -11/Scrapyard | Discovered new exit (range 15) 19 | -11/Scrapyard | Entered Materials 80 | -10/Materials | Discovered new exit (range 12) 86 | -10/Materials | Crushed by falling debris 88 | -10/Materials | Entered Mines 90 | -10/Mines | Core integrity fell below 50% 126 | -10/Mines | Met a Derelict shopkeep closing up shop 137 | -10/Mines | Lost 4 parts (1u3w) 190 | -10/Mines | Received a Mining Laser from a helpful Derelict 235 | -10/Mines | Discovered new exit (range 13) 241 | -10/Mines | Joined a pair of Derelicts in attacking an 0b10 outpost 243 | -10/Mines | Entered Materials 243 | -9/Materials | Evolved 2 slots: Utility x2 367 | -9/Materials | Build established: Mutant 371 | -9/Materials | Lost 3 parts (3w) 417 | -9/Materials | Discovered new exit (range 9) 427 | -9/Materials | Entered Mines 437 | -9/Mines | Discovered new exit (range 5) 439 | -9/Mines | Entered Materials 439 | -8/Materials | Evolved 2 slots: Utility x2 668 | -8/Materials | Destroyed 8 combat bots 675 | -8/Materials | Discovered new exit (range 4) 677 | -8/Materials | Entered Factory 677 | -7/Factory | Evolved 2 slots: Utility x2 678 | -7/Factory | Identified exit to Storage 705 | -7/Factory | Lost 7 parts (1p2n1u3w) 812 | -7/Factory | Manually triggered Chute Trap 812 | -7/Factory | Sucked down chute 812 | -7/Factory | Entered Waste 813 | -7/Waste | Met a frightened Derelict 827 | -7/Waste | EMP discharged 836 | -7/Waste | Spotted C-40 Crusher 837 | -7/Waste | Spotted C-40 Crusher 843 | -7/Waste | Spotted C-40 Crusher 849 | -7/Waste | Spotted C-40 Crusher 850 | -7/Waste | Spotted C-40 Crusher 851 | -7/Waste | Spotted C-40 Crusher 853 | -7/Waste | Discovered new exit (range 10) 862 | -7/Waste | Entered Factory 862 | -7/Factory | Accompanied by 3 allies 966 | -7/Factory | Identified exit to Lower Caves 1073 | -7/Factory | Entered Lower Caves 1129 | -7/Lower Caves | Attracted the attention of an 0b10 outpost 1140 | -7/Lower Caves | Core integrity fell below 50% 1150 | -7/Lower Caves | Core integrity fell below 20% 1157 | -7/Lower Caves | Destroyed by S-27 Virus with Autogun Last Messages --------------- 01010_ System corrupted: Energy discharge (-66). 01029_ System corrupted: Matter fused (-10). 01051_ System corrupted: Heat flow error (+180). 01060_ System corrupted: Katana targeting data glitched. 01061_ K-01 Serf destroyed. 01063_ System corrupted: Katana targeting data glitched. 01070_ Acquired System Backup Module. LOCATION=LOWER CAVES GOAL=ESCAPE 01074_ Airjet destroyed. 01074_ Dropped Enh. Nuclear Core. 01075_ Dropped Flak Gun. 01079_ Hover Unit destroyed. 01090_ System corrupted: Matter fused (-10). 01095_ M-14 Sweeper extracted Dirty Bomb Trap. 01096_ M-14 Sweeper reprogrammed Dirty Bomb Trap. 01098_ M-14 Sweeper extracted Dirty Bomb Trap. 01129_ Y-64 Sentinel: "DETECTED UNIDENTIFIED DERELICT." 01133_ Y-64 Sentinel: "REQUESTING BACKUP." 01139_ Katana destroyed. Map ----- +----------------------------------------------------+ | ???????????????????????????????????????## | | ????????????????????????????????????????## | | ????????????????????????????????????????## ## | | ????????????????????????????????????????# ##? | | ?????????????????????????????????####???# #?? | | ????????????????????????????????## #???## ##?? | | ????????????????????????????????# #????# ###??? | | ????????????????????????????????# #??### ##???? | | ????????????????????????????????# #??## # ##??? | | ????????????????????????????????## ##?# ##?? | | ?????????????????????????????????# ### #?? | | ?????????????????????????????????# #?? | | ?????????????????????????????????# ### | | ?????????????????????????????###### | | ?????????????????????????????#"""##" | | ?????????????????????????????#"" "" | | ?????????????????????????????#" ### | | ?????????????????????????????#" " " ## ##??# | | ?????????????????????????????# ""##" #### ##???? | | ????????????????????????######### ##?#####????? | | ?????????????????????#### ##??# #??????????? | | ?????????????????????# #### ##?????????? | | ????????????????????## sss #?????????? | | ???????????????????## ## ???? | | ???????????????????# ######? | | ???????????????????# @ ##?????? ###### ? | | ???????????????????# ######??????? ??????? #? | | ??????????????????# ??????????????# ????????? | | ?????????????????# ????????????????####???????? | | ??????????????? ?????????????????????????????? | | ????????????? ??????????????????????????????? | | ????????????##???????????????????????????????????? | | ?????????????????????????????????????????????????? | | ?????????????????????????????????????????????????? | | ?????????????????????????????????????????????????? | | ?????????????????????????????????????????????????? | | ?????????????????????????????????????????????????? | | ?????????????????????????????????????????????????? | | ?????????????????????????????????????????????????? | | ?????????????????????????????????????????????????? | | ?????????????????????????????????????????????????? | | ?????????????????????????????????????????????????? | | ?????????????????????????????????????????????????? | | ?????????????????????????????????????????????????? | | ?????????????????????????????????????????????????? | | ?????????????????????????????????????????????????? | | ?????????????????????????????????????????????????? | | ?????????????????????????????????????????????????? | | ?????????????????????????????????????????????????? | | ?????????????????????????????????????????????????? | +----------------------------------------------------+ Best States ------------- Heat Dissipation 34 Energy Generation 17 Energy Capacity 300 Matter Stores 300 Matter Capacity 300 Sight Range 16 Terrain Scan Density 85 Armor Coverage 450 Evasion (%) 59 Targeting Accuracy 15 Core Analysis 6 Offensive Hacking 10 Defensive Hacking 10 Item Schematics ----------------- None Robot Schematics ------------------ None Fabricated ------------ Nothing Alien Tech Used ----------------- None Achievements -------------- None Challenges ------------ None Game ------ Seed DisposableImpactScythe Manual? 0 Play Time 00:25:22 Cumulative 142.5 hours Start 2019.10.19 @ 22:08:29 End 2019.10.19 @ 22:32:09 Sessions 1 Manual Loads 0 Difficulty Rogue Special Mode None Game No. 85 Rogue 85 Adventurer 0 Explorer 0 Win Type - Total 5 Types 4/0/0/1/0/0/0 Lore% 59 Gallery% 74 Achievement% 55 Wizard Run 0 Options --------- ASCII 0 Keyboard 0 Movement Mouse Keybinds 0 Fullscreen 1 Font 18/X11 Map View 76x50 Tactical HUD 1 Map Filters NONE Filters NONE Steam 1 RUN: 1e43ccab-c3fb-43d8-a2f7-ccc499d56df3